fUSD/lending_fUSD_20250304
["ID","MTS","AMOUNT","RATE_DAILY","PERIOD"]
[355324223,1741065061024,-500.0,0.00012966,2]
[355324225,1741065061034,-500.0,0.00012966,2]
[355324227,1741065061043,-500.0,0.00012966,2]
[355324229,1741065061053,-500.0,0.00012966,2]
[355324231,1741065061062,-639.65,0.00012966,2]
[355324233,1741065061071,-636.95792985,0.00012966,2]
[355324235,1741065061080,-336.34279989,0.00012966,2]
[355324237,1741065061089,-1153.48,0.00012966,2]
[355324239,1741065061099,-500.0,0.00012966,2]
[355324241,1741065061107,-500.0,0.00012966,2]
[355324243,1741065061117,-752.21,0.00012966,2]
[355324245,1741065061126,-500.0,0.00012966,2]
[355324247,1741065061135,-520.63,0.00012966,2]
[355324249,1741065061144,-500.0,0.00012966,2]
[355324251,1741065061154,-500.0,0.00012966,2]
[355324253,1741065061163,-500.0,0.00012966,2]
[355324255,1741065061172,-588.53307376,0.00012966,2]
[355324257,1741065061181,-501.41105889,0.00012966,2]
[355324259,1741065061191,-500.0,0.00012966,2]
[355324261,1741065061200,-500.0,0.00012966,2]
[355324263,1741065061210,-500.0,0.00012966,2]
[355324265,1741065061220,-500.0,0.00012966,2]
[355324267,1741065061230,-500.0,0.00012966,2]
[355324269,1741065061240,-854.9,0.00012966,2]
[355324271,1741065061250,-500.0,0.00012966,2]
[355324273,1741065061260,-560.68,0.00012966,2]
[355324275,1741065061270,-500.0,0.00012966,2]
[355324277,1741065061283,-500.0,0.00012966,2]
[355324279,1741065061293,-648.38,0.00012966,2]
[355324281,1741065061303,-728.75,0.00012966,2]
[355324283,1741065061312,-1167.53,0.00012966,2]
[355324285,1741065061321,-500.0,0.00012966,2]
[355324287,1741065061332,-500.0,0.00012966,2]
[355324289,1741065061342,-500.0,0.00012966,2]
[355324291,1741065061351,-664.17,0.00012966,2]
[355324293,1741065061361,-500.0,0.00012966,2]
[355324295,1741065061370,-974.57,0.00012966,2]
[355324297,1741065061379,-1263.72,0.00012966,2]
[355324298,1741065061389,-500.58373651,0.00012966,2]
[355324300,1741065061398,-691.37,0.00012966,2]
[355324302,1741065061407,-500.92488593,0.00012966,2]
[355324304,1741065061416,-500.0,0.00012966,2]
[355324306,1741065061426,-723.5,0.00012966,2]
[355324308,1741065061435,-857.27,0.00012966,2]
[355324310,1741065061444,-693.3,0.00012966,2]
[355324312,1741065061454,-501.59750084,0.00012966,2]
[355324314,1741065061464,-771.88,0.00012966,2]
[355324316,1741065061473,-500.50485129,0.00012966,2]
[355324318,1741065061482,-500.0,0.00012966,2]
[355324320,1741065061492,-500.0,0.00012966,2]
[355324322,1741065061501,-501.26832933,0.00012966,2]
[355324324,1741065061511,-500.0,0.00012966,2]
[355324326,1741065061520,-502.31891973,0.00012966,2]
[355324328,1741065061536,-183.79542911,0.00012966,2]
[355324330,1741065061555,-1152.45,0.00012966,2]
[355324332,1741065061573,-500.0,0.00012966,2]
[355324334,1741065061584,-500.0,0.00012966,2]
[355324336,1741065061594,-502.06739159,0.00012966,2]
[355324338,1741065061604,-500.0,0.00012966,2]
[355324340,1741065061616,-500.0,0.00012966,2]
[355324342,1741065061626,-934.9,0.00012966,2]
[355324344,1741065061636,-500.0,0.00012966,2]
[355324346,1741065061646,-501.20811617,0.00012966,2]
[355324348,1741065061657,-678.15,0.00012966,2]
[355324350,1741065061668,-500.0,0.00012966,2]
[355324352,1741065061677,-500.0,0.00012966,2]
[355324354,1741065061687,-561.83,0.00012966,2]
[355324356,1741065061696,-500.0,0.00012966,2]
[355324358,1741065061706,-500.0,0.00012966,2]
[355324360,1741065061715,-500.0,0.00012966,2]
[355324362,1741065061725,-500.0,0.00012966,2]
[355324364,1741065061734,-500.0,0.00012966,2]
[355324366,1741065061743,-500.0,0.00012966,2]
[355324368,1741065061752,-794.56,0.00012966,2]
[355324370,1741065061762,-501.26092134,0.00012966,2]
[355324372,1741065061772,-500.0,0.00012966,2]
[355324374,1741065061783,-500.0,0.00012966,2]
[355324376,1741065061792,-500.41101022,0.00012966,2]
[355324378,1741065061802,-1652.5,0.00012966,2]
[355324380,1741065061811,-500.0,0.00012966,2]
[355324382,1741065061820,-500.0,0.00012966,2]
[355324383,1741065061829,-733.79,0.00012966,2]
[355324385,1741065061838,-500.0,0.00012966,2]
[355324387,1741065061848,-1013.87,0.00012966,2]
[355324389,1741065061857,-500.84501994,0.00012966,2]
[355324391,1741065061866,-500.0,0.00012966,2]
[355324393,1741065061874,-500.0,0.00012966,2]
[355324395,1741065061884,-500.0,0.00012966,2]
[355324397,1741065061893,-382.29236422,0.00012966,2]
[355324399,1741065061903,-500.0,0.00012966,2]
[355324401,1741065061912,-855.35,0.00012966,2]
[355324403,1741065061921,-1440.4,0.00012966,2]
[355324405,1741065061930,-500.54599999,0.00012966,2]
[355324407,1741065061940,-512.27,0.00012966,2]
[355324409,1741065061949,-1751.26,0.00012966,2]
[355324411,1741065061958,-500.0,0.00012966,2]
[355324413,1741065061968,-503.25659226,0.00012966,2]
[355324415,1741065061977,-604.44,0.00012966,2]
[355324417,1741065061987,-1342.02,0.00012966,2]
[355324419,1741065061996,-501.83939897,0.00012966,2]
[355324421,1741065062006,-503.27837456,0.00012966,2]
[355324423,1741065062015,-1532.9,0.00012966,2]
[355324425,1741065062027,-617.79132065,0.00012966,2]
[355324427,1741065062036,-500.0,0.00012966,2]
[355324429,1741065062046,-1329.83,0.00012966,2]
[355324430,1741065062056,-500.0,0.00012966,2]
[355324432,1741065062065,-500.0,0.00012966,2]
[355324433,1741065062074,-500.0,0.00012966,2]
[355324435,1741065062083,-500.0,0.00012966,2]
[355324437,1741065062092,-635.87,0.00012966,2]
[355324439,1741065062102,-500.0,0.00012966,2]
[355324441,1741065062111,-1237.48,0.00012966,2]
[355324443,1741065062121,-631.27,0.00012966,2]
[355324445,1741065062130,-501.77465975,0.00012966,2]
[355324447,1741065062139,-575.76,0.00012966,2]
[355324449,1741065062149,-501.93136708,0.00012966,2]
[355324451,1741065062158,-721.37,0.00012966,2]
[355324453,1741065062168,-789.43,0.00012966,2]
[355324455,1741065062177,-501.28523986,0.00012966,2]
[355324457,1741065062187,-756.89,0.00012966,2]
[355324459,1741065062197,-500.0,0.00012966,2]
[355324461,1741065062207,-500.0,0.00012966,2]
[355324463,1741065062216,-501.35283928,0.00012966,2]
[355324465,1741065062225,-581.32,0.00012966,2]
[355324466,1741065062235,-500.0,0.00012966,2]
[355324468,1741065062244,-516.43792301,0.00012966,2]
[355324470,1741065062254,-511.95302367,0.00012966,2]
[355324472,1741065062263,-500.0,0.00012966,2]
[355324474,1741065062272,-500.0,0.00012966,2]
[355324476,1741065062283,-500.0,0.00012966,2]
[355324478,1741065062292,-1424.84,0.00012966,2]
[355324480,1741065062301,-500.0,0.00012966,2]
[355324482,1741065062310,-500.0,0.00012966,2]
[355324484,1741065062319,-1046.81,0.00012966,2]
[355324486,1741065062328,-500.0,0.00012966,2]
[355324488,1741065062338,-500.0,0.00012966,2]
[355324490,1741065062347,-506.56938241,0.00012966,2]
[355324492,1741065062356,-500.0,0.00012966,2]
[355324494,1741065062365,-500.0,0.00012966,2]
[355324496,1741065062374,-500.0,0.00012966,2]
[355324498,1741065062384,-1051.57,0.00012966,2]
[355324500,1741065062393,-502.68381147,0.00012966,2]
[355324502,1741065062402,-783.76,0.00012966,2]
[355324503,1741065062411,-1029.06,0.00012966,2]
[355324505,1741065062420,-500.0,0.00012966,2]
[355324507,1741065062430,-500.0,0.00012966,2]
[355324509,1741065062440,-690.78,0.00012966,2]
[355324511,1741065062449,-501.55056825,0.00012966,2]
[355324513,1741065062459,-500.64108753,0.00012966,2]
[355324515,1741065062468,-980.47,0.00012966,2]
[355324517,1741065062477,-500.0,0.00012966,2]
[355324519,1741065062487,-500.0,0.00012966,2]
[355324521,1741065062496,-1285.27,0.00012966,2]
[355324523,1741065062506,-502.62702944,0.00012966,2]
[355324525,1741065062515,-500.0,0.00012966,2]
[355324527,1741065062526,-733.54,0.00012966,2]
[355324529,1741065062540,-1273.22,0.00012966,2]
[355324531,1741065062549,-500.0,0.00012966,2]
[355324533,1741065062558,-508.8260858,0.00012966,2]
[355324535,1741065062567,-503.20467508,0.00012966,2]
[355324537,1741065062578,-591.19,0.00012966,2]
[355324539,1741065062587,-500.0,0.00012966,2]
[355324541,1741065062596,-692.21,0.00012966,2]
[355324543,1741065062605,-500.0,0.00012966,2]
[355324545,1741065062617,-1224.4,0.00012966,2]
[355324547,1741065062627,-500.0,0.00012966,2]
[355324549,1741065062637,-625.71809443,0.00012966,2]
[355324551,1741065062647,-500.0,0.00012966,2]
[355324553,1741065062656,-500.0,0.00012966,2]
[355324554,1741065062666,-764.52,0.00012966,2]
[355324556,1741065062675,-500.0,0.00012966,2]
[355324558,1741065062684,-1943.42,0.00012966,2]
[355324560,1741065062693,-500.0,0.00012966,2]
[355324562,1741065062702,-834.21,0.00012966,2]
[355324564,1741065062711,-500.0,0.00012966,2]
[355324565,1741065062720,-1611.96,0.00012966,2]
[355324567,1741065062730,-2083.03,0.00012966,2]
[355324569,1741065062739,-507.90071689,0.00012966,2]
[355324571,1741065062748,-723.39,0.00012966,2]
[355324573,1741065062757,-500.0,0.00012966,2]
[355324575,1741065062767,-508.8133806,0.00012966,2]
[355324577,1741065062778,-500.0,0.00012966,2]
[355324579,1741065062789,-1707.78,0.00012966,2]
[355324581,1741065062799,-508.44421363,0.00012966,2]
[355324583,1741065062809,-500.0,0.00012966,2]
[355324585,1741065062820,-593.73996166,0.00012966,2]
[355324587,1741065062830,-500.0,0.00012966,2]
[355324589,1741065062840,-509.24404871,0.00012966,2]
[355324591,1741065062850,-500.0,0.00012966,2]
[355324593,1741065062860,-508.96287179,0.00012966,2]
[355324595,1741065062869,-500.0,0.00012966,2]
[355324597,1741065062879,-500.0,0.00012966,2]
[355324599,1741065062889,-500.0,0.00012966,2]
[355324601,1741065062899,-500.0,0.00012966,2]
[355324603,1741065062908,-2925.27,0.00012966,2]
[355324605,1741065062917,-500.0,0.00012966,2]
[355324607,1741065062927,-505.69693889,0.00012966,2]
[355324609,1741065062939,-500.0,0.00012966,2]
[355324611,1741065062949,-506.31600067,0.00012966,2]
[355324613,1741065062960,-500.0,0.00012966,2]
[355324615,1741065062969,-1445.29,0.00012966,2]
[355324617,1741065062979,-500.0,0.00012966,2]
[355324619,1741065062989,-500.0,0.00012966,2]
[355324620,1741065062999,-500.0,0.00012966,2]
[355324622,1741065063009,-500.0,0.00012966,2]
[355324623,1741065063019,-500.0,0.00012966,2]
[355324624,1741065063036,-517.28167265,0.00012966,2]
[355324625,1741065063047,-506.83363145,0.00012966,2]
[355324626,1741065063058,-1557.07,0.00012966,2]
[355324627,1741065063068,-500.0,0.00012966,2]
[355324628,1741065063079,-509.30584324,0.00012966,2]
[355324629,1741065063091,-2641.7,0.00012966,2]
[355324630,1741065063101,-500.0,0.00012966,2]
[355324631,1741065063111,-500.0,0.00012966,2]
[355324632,1741065063121,-500.0,0.00012966,2]
[355324633,1741065063132,-319.01073114,0.00012966,2]
[355324634,1741065063143,-500.0,0.00012966,2]
[355324635,1741065063154,-500.0,0.00012966,2]
[355324636,1741065063164,-943.07,0.00012966,2]
[355324637,1741065063174,-500.05,0.00012966,2]
[355324638,1741065063184,-500.0,0.00012966,2]
[355324639,1741065063194,-500.0,0.00012966,2]
[355324640,1741065063204,-1544.84,0.00012966,2]
[355324641,1741065063214,-514.86325874,0.00012966,2]
[355324642,1741065063224,-348.19,0.00012966,2]
[355324643,1741065063234,-500.0,0.00012966,2]
[355324644,1741065063244,-500.0,0.00012966,2]
[355324645,1741065063253,-824.13,0.00012966,2]
[355324646,1741065063263,-500.0,0.00012966,2]
[355324647,1741065063272,-982.34,0.00012966,2]
[355324649,1741065063285,-1368.56,0.00012966,2]
[355324651,1741065063295,-500.0,0.00012966,2]
[355324653,1741065063305,-500.0,0.00012966,2]
[355324673,1741065063499,-1259.35,0.00012966,2]
[355324675,1741065063510,-501.1787685,0.00012966,2]
[355324677,1741065063520,-500.0,0.00012966,2]
[355324679,1741065063534,-3242.46,0.00012966,2]
[355324681,1741065063546,-225.47064989,0.00012966,2]
[355324683,1741065063558,-500.0,0.00012966,2]
[355324685,1741065063568,-869.69,0.00012966,2]
[355324687,1741065063578,-513.29722645,0.00012966,2]
[355324689,1741065063589,-527.05,0.00012966,2]
[355324691,1741065063599,-500.0,0.00012966,2]
[355324693,1741065063610,-500.0,0.00012966,2]
[355324695,1741065063621,-500.0,0.00012966,2]
[355324697,1741065063633,-500.0,0.00012966,2]
[355324699,1741065063644,-2931.59,0.00012966,2]
[355324701,1741065063655,-500.0,0.00012966,2]
[355324703,1741065063665,-500.0,0.00012966,2]
[355324705,1741065063675,-5306.55,0.00012966,2]
[355324707,1741065063686,-500.0,0.00012966,2]
[355324709,1741065063696,-512.43089727,0.00012966,2]
[355324711,1741065063706,-885.96,0.00012966,2]
[355324712,1741065063716,-14786.62517747,0.00012966,2]
[355324723,1741065063816,-3297.38628195,0.00012966,2]
[355326258,1741065080398,156.77,0.00012031,2]
[355326995,1741065152718,500.0,0.0001018,2]
[355327040,1741065415306,550.0,0.00011,2]
[355327044,1741065589294,5000.0,0.0001,2]
[355327045,1741065846128,500.0,0.0001018,2]
[355327046,1741065944404,167.26,0.00012086,2]
[355327056,1741065981485,482.96,9.816e-05,2]
[355327057,1741065981716,482.96,0.0001208,2]
[355327061,1741066035192,259.9,0.0001173,2]
[355327071,1741066126744,1000.0,0.00011728,2]
[355327072,1741066142661,165.75,0.00011724,2]
[355327073,1741066142881,165.75,0.00011891,2]
[355327074,1741066143099,165.75,0.00012059,2]
[355327075,1741066143512,165.75,0.00012226,2]
[355327076,1741066143737,165.75,0.00012394,2]
[355327099,1741066220866,-165.75,0.00012561,2]
[355327100,1741066220893,-358.55,0.00012589,2]
[355327118,1741066238503,-837.44622463,0.00012589,2]
[355327119,1741066238515,-150.0,0.00012589,2]
[355327120,1741066238525,-114.04107537,0.0001259,2]
[355327265,1741066240546,-288.67206265,0.0001259,2]
[355327275,1741066240635,-16907.04766198,0.0001259,2]
[355327277,1741066240644,-1648.2361,0.0001259,2]
[355327279,1741066240653,-1287.75,0.0001259,2]
[355327281,1741066240663,-250.0,0.00012602,2]
[355327283,1741066240673,-1195.99622454,0.00012624,2]
[355327285,1741066240682,-1195.99622454,0.00012658,2]
[355327287,1741066240691,-500.0,0.00012673,2]
[355327289,1741066240700,-18787.07299971,0.00012685,2]
[355327291,1741066240710,-150.99,0.00012685,2]
[355327293,1741066240719,-482.2,0.00012685,2]
[355327295,1741066240728,-9999.99,0.00012685,2]
[355327297,1741066240737,-293.9,0.00012685,2]
[355327299,1741066240746,-499.99,0.00012685,2]
[355327301,1741066240757,-299.99,0.00012685,2]
[355327303,1741066240766,-999.99,0.00012685,2]
[355327305,1741066240775,-1633.05,0.00012688,2]
[355327307,1741066240784,-1611.73,0.00012688,2]
[355327309,1741066240794,-1310.83,0.00012688,2]
[355327311,1741066240803,-1789.92,0.00012688,2]
[355327313,1741066240812,-2474.72,0.00012688,2]
[355327315,1741066240821,-2902.54,0.00012688,2]
[355327317,1741066240831,-500.0,0.00012688,2]
[355327319,1741066240840,-1994.28,0.00012688,2]
[355327321,1741066240849,-746.85,0.00012688,2]
[355327323,1741066240859,-1521.68,0.00012688,2]
[355327325,1741066240868,-2656.87,0.00012688,2]
[355327327,1741066240878,-500.0,0.00012688,2]
[355327328,1741066240888,-2293.08,0.00012688,2]
[355327330,1741066240897,-3106.58,0.00012688,2]
[355327332,1741066240907,-500.0,0.00012688,2]
[355327334,1741066240917,-784.01,0.00012688,2]
[355327336,1741066240929,-748.57,0.00012688,2]
[355327338,1741066240939,-2102.81,0.00012688,2]
[355327340,1741066240948,-505.60832902,0.00012688,2]
[355327342,1741066240958,-500.0,0.00012688,2]
[355327344,1741066240970,-3025.13,0.00012688,2]
[355327346,1741066240980,-1893.95,0.00012688,2]
[355327348,1741066240989,-500.0,0.00012688,2]
[355327350,1741066240999,-1788.24,0.00012688,2]
[355327352,1741066241010,-844.21,0.00012688,2]
[355327354,1741066241020,-586.65,0.00012688,2]
[355327356,1741066241030,-2916.03,0.00012688,2]
[355327359,1741066241040,-1160.9,0.00012688,2]
[355327361,1741066241050,-500.0,0.00012688,2]
[355327362,1741066241059,-502.98,0.00012688,2]
[355327364,1741066241068,-511.0385968,0.00012688,2]
[355327366,1741066241078,-500.0,0.00012689,2]
[355327368,1741066241087,-500.0,0.00012689,2]
[355327370,1741066241096,-500.0,0.00012689,2]
[355327372,1741066241105,-500.0,0.00012689,2]
[355327374,1741066241114,-2042.76,0.00012689,2]
[355327376,1741066241123,-500.0,0.00012689,2]
[355327378,1741066241133,-500.0,0.00012689,2]
[355327380,1741066241142,-500.0,0.00012689,2]
[355327382,1741066241152,-647.3344165,0.00012689,2]
[355327384,1741066241161,-826.77,0.00012689,2]
[355327386,1741066241171,-500.0,0.00012689,2]
[355327388,1741066241181,-500.0,0.00012689,2]
[355327390,1741066241191,-500.0,0.00012689,2]
[355327392,1741066241201,-505.11474053,0.00012689,2]
[355327394,1741066241211,-1088.33,0.00012689,2]
[355327396,1741066241220,-1124.46,0.00012689,2]
[355327398,1741066241230,-500.0,0.00012689,2]
[355327400,1741066241239,-500.0,0.00012689,2]
[355327402,1741066241248,-492.00013696,0.00012689,2]
[355327404,1741066241262,-500.0,0.00012689,2]
[355327406,1741066241271,-500.0,0.00012689,2]
[355327408,1741066241280,-500.0,0.00012689,2]
[355327410,1741066241290,-500.0,0.00012689,2]
[355327412,1741066241299,-500.0,0.00012689,2]
[355327414,1741066241309,-501.55729622,0.00012689,2]
[355327416,1741066241318,-500.0,0.00012689,2]
[355327417,1741066241327,-500.0,0.00012689,2]
[355327419,1741066241337,-500.0,0.00012689,2]
[355327421,1741066241346,-501.53363928,0.00012689,2]
[355327423,1741066241355,-1358.31,0.00012689,2]
[355327425,1741066241364,-500.0,0.00012689,2]
[355327427,1741066241373,-505.34027584,0.00012689,2]
[355327429,1741066241384,-500.0,0.00012689,2]
[355327431,1741066241393,-500.0,0.00012689,2]
[355327433,1741066241401,-620.22,0.00012689,2]
[355327435,1741066241411,-186.79775661,0.00012689,2]
[355327437,1741066241420,-500.0,0.00012689,2]
[355327439,1741066241429,-500.0,0.00012689,2]
[355327441,1741066241438,-1484.11,0.00012689,2]
[355327443,1741066241448,-500.0,0.00012689,2]
[355327445,1741066241457,-500.0,0.00012689,2]
[355327447,1741066241466,-929.21,0.00012689,2]
[355327449,1741066241475,-500.0,0.00012689,2]
[355327451,1741066241483,-500.0,0.00012689,2]
[355327452,1741066241492,-500.0,0.00012689,2]
[355327454,1741066241502,-500.0,0.00012689,2]
[355327456,1741066241515,-500.0,0.00012689,2]
[355327458,1741066241524,-907.8,0.00012689,2]
[355327460,1741066241533,-500.0,0.00012689,2]
[355327462,1741066241543,-508.4498912,0.00012689,2]
[355327464,1741066241553,-500.0,0.00012689,2]
[355327466,1741066241563,-761.75,0.00012689,2]
[355327468,1741066241572,-790.97,0.00012689,2]
[355327470,1741066241582,-500.0,0.00012689,2]
[355327472,1741066241591,-500.0,0.00012689,2]
[355327474,1741066241601,-500.0,0.00012689,2]
[355327476,1741066241610,-1276.46,0.00012689,2]
[355327478,1741066241619,-500.0,0.00012689,2]
[355327480,1741066241628,-500.0,0.00012689,2]
[355327482,1741066241638,-992.94,0.00012689,2]
[355327484,1741066241647,-500.0,0.00012689,2]
[355327486,1741066241656,-500.0,0.00012689,2]
[355327488,1741066241665,-727.65,0.00012689,2]
[355327490,1741066241675,-500.0,0.00012689,2]
[355327492,1741066241684,-500.0,0.00012689,2]
[355327494,1741066241693,-500.0,0.00012689,2]
[355327496,1741066241703,-502.93559593,0.00012689,2]
[355327498,1741066241711,-500.0,0.00012689,2]
[355327500,1741066241721,-1024.081195,0.00012689,2]
[355327502,1741066241730,-500.0,0.00012689,2]
[355327504,1741066241739,-500.0,0.00012689,2]
[355327506,1741066241748,-500.0,0.00012689,2]
[355327508,1741066241759,-332.70697929,0.00012689,2]
[355327509,1741066241769,-500.0,0.00012689,2]
[355327512,1741066241786,-501.49221747,0.00012689,2]
[355327514,1741066241796,-500.0,0.00012689,2]
[355327516,1741066241805,-500.0,0.00012689,2]
[355327518,1741066241815,-815.31,0.00012689,2]
[355327520,1741066241824,-500.0,0.00012689,2]
[355327522,1741066241834,-1747.107623,0.00012689,2]
[355327524,1741066241843,-500.0,0.00012689,2]
[355327526,1741066241852,-500.0,0.00012689,2]
[355327528,1741066241862,-500.0,0.00012689,2]
[355327530,1741066241871,-500.0,0.00012689,2]
[355327532,1741066241880,-501.31796272,0.00012689,2]
[355327534,1741066241890,-500.0,0.00012689,2]
[355327536,1741066241899,-500.0,0.00012689,2]
[355327538,1741066241909,-500.0,0.00012689,2]
[355327540,1741066241921,-500.0,0.00012689,2]
[355327542,1741066241930,-1151.34,0.00012689,2]
[355327544,1741066241939,-500.0,0.00012689,2]
[355327546,1741066241949,-500.0,0.00012689,2]
[355327548,1741066241959,-500.0,0.00012689,2]
[355327550,1741066241968,-551.84435973,0.00012689,2]
[355327552,1741066241977,-501.36384016,0.00012689,2]
[355327554,1741066241987,-500.0,0.00012689,2]
[355327556,1741066241998,-1466.27,0.00012689,2]
[355327558,1741066242010,-536.81,0.00012689,2]
[355327560,1741066242019,-509.33296802,0.00012689,2]
[355327562,1741066242028,-500.0,0.00012689,2]
[355327564,1741066242038,-500.0,0.00012689,2]
[355327565,1741066242047,-1446.44,0.00012689,2]
[355327567,1741066242056,-500.0,0.00012689,2]
[355327569,1741066242066,-369.84979319,0.00012689,2]
[355327571,1741066242075,-500.0,0.00012689,2]
[355327573,1741066242085,-672.12,0.00012689,2]
[355327575,1741066242095,-533.85262723,0.00012689,2]
[355327577,1741066242104,-500.0,0.00012689,2]
[355327579,1741066242113,-513.09652697,0.00012689,2]
[355327581,1741066242123,-161.078587,0.00012689,2]
[355327583,1741066242132,-500.0,0.00012689,2]
[355327585,1741066242141,-500.0,0.00012689,2]
[355327587,1741066242151,-500.0,0.00012689,2]
[355327589,1741066242160,-504.03916961,0.00012689,2]
[355327591,1741066242170,-503.26169479,0.00012689,2]
[355327593,1741066242179,-500.0,0.00012689,2]
[355327595,1741066242188,-500.0,0.00012689,2]
[355327597,1741066242198,-500.0,0.00012689,2]
[355327599,1741066242207,-500.0,0.00012689,2]
[355327601,1741066242216,-548.61,0.00012689,2]
[355327603,1741066242225,-500.0,0.00012689,2]
[355327605,1741066242235,-500.0,0.00012689,2]
[355327606,1741066242244,-500.0,0.00012689,2]
[355327607,1741066242256,-971.47,0.00012689,2]
[355327608,1741066242265,-500.0,0.00012689,2]
[355327609,1741066242274,-500.0,0.00012689,2]
[355327610,1741066242283,-500.0,0.00012689,2]
[355327612,1741066242293,-828.8,0.00012689,2]
[355327613,1741066242303,-1216.91,0.00012689,2]
[355327615,1741066242312,-512.25405869,0.00012689,2]
[355327617,1741066242321,-162.345236,0.00012689,2]
[355327620,1741066242331,-500.0,0.00012689,2]
[355327621,1741066242340,-184.26672978,0.00012689,2]
[355327624,1741066242350,-326.32774715,0.00012689,2]
[355327626,1741066242359,-501.46608816,0.00012689,2]
[355327628,1741066242369,-1009.99,0.00012689,2]
[355327629,1741066242378,-500.0,0.00012689,2]
[355327632,1741066242387,-796.04,0.00012689,2]
[355327633,1741066242397,-500.0,0.00012689,2]
[355327635,1741066242406,-500.0,0.00012689,2]
[355327638,1741066242416,-500.0,0.00012689,2]
[355327640,1741066242426,-1889.68,0.00012689,2]
[355327642,1741066242436,-500.0,0.00012689,2]
[355327644,1741066242445,-835.51,0.00012689,2]
[355327646,1741066242456,-500.0,0.00012689,2]
[355327648,1741066242465,-747.45,0.00012689,2]
[355327650,1741066242475,-500.0,0.00012689,2]
[355327652,1741066242484,-500.00399997,0.00012689,2]
[355327654,1741066242494,-500.0,0.00012689,2]
[355327656,1741066242504,-2023.49,0.00012689,2]
[355327658,1741066242514,-501.71942783,0.00012689,2]
[355327660,1741066242523,-594.18996185,0.00012689,2]
[355327662,1741066242532,-1547.09,0.00012689,2]
[355327664,1741066242542,-500.0,0.00012689,2]
[355327666,1741066242551,-1337.81,0.00012689,2]
[355327668,1741066242560,-1328.39,0.00012689,2]
[355327670,1741066242570,-500.0,0.00012689,2]
[355327672,1741066242579,-2745.36,0.00012689,2]
[355327674,1741066242588,-1404.82,0.00012689,2]
[355327676,1741066242598,-500.0,0.00012689,2]
[355327678,1741066242607,-2823.84,0.00012689,2]
[355327680,1741066242616,-503.31161655,0.00012689,2]
[355327682,1741066242626,-650.24,0.00012689,2]
[355327684,1741066242635,-500.0,0.00012689,2]
[355327686,1741066242645,-500.0,0.00012689,2]
[355327688,1741066242654,-623.71,0.00012689,2]
[355327690,1741066242664,-500.0,0.00012689,2]
[355327692,1741066242673,-1066.82,0.00012689,2]
[355327694,1741066242683,-1164.84,0.00012689,2]
[355327696,1741066242692,-500.0,0.00012689,2]
[355327698,1741066242702,-7908.12,0.00012689,2]
[355327700,1741066242711,-500.0,0.00012689,2]
[355327702,1741066242720,-567.19,0.00012689,2]
[355327704,1741066242729,-517.69932928,0.00012689,2]
[355327706,1741066242739,-2014.33,0.00012689,2]
[355327708,1741066242748,-847.31,0.00012689,2]
[355327710,1741066242759,-500.0,0.00012689,2]
[355327712,1741066242768,-500.0,0.00012689,2]